[Event "Slovakian ECo-C Extraliga 2024-25"]
[Site "Slovakia"]
[Date "2025.02.15"]
[Round "5.7"]
[White "Sekova, Olivia"]
[Black "Rachela, Milan"]
[Result "0-1"]
[Annotator "ChessBase"]
[ECO "C44"]
[WhiteElo "2003"]
[BlackElo "2320"]
[PlyCount "72"]
[EventDate "2024.09.12"]
[EventType "team-tourn"]
[EventCountry "SVK"]
[SourceTitle "playchess.com"]
[Source "ChessBase"]
[SourceQuality "1"]
[TimeControl "5400+30"]

1. e4 {[%emt 0:00:04]} e5 {[%emt 0:03:00]} 2. Nf3 {[%emt 0:00:15]} Nc6 {[%emt 0:00:04]} 3. d4 {[%emt 0:00:10]} exd4 {[%emt 0:00:06]} 4. Nxd4 {[%emt 0:00:06]} Bb4+ {[%emt 0:01:11]} 5. c3 {[%emt 0:00:07]} Be7 {[%emt 0:00:06]} 6. Nf5 {[%emt 0:06:04]} g6 {[%emt 0:21:07]} 7. Nxe7 {[%emt 0:02:25]} Qxe7 {[%emt 0:00:37]} 8. Bd3 {[%emt 0:01:10]} b6 {[%emt 0:08:57]} 9. O-O {[%emt 0:04:44]} Bb7 {[%emt 0:00:03]} 10. c4 {[%emt 0:02:50]} O-O-O {[%emt 0:03:51]} 11. Nc3 {[%emt 0:00:19]} f6 {[%emt 0:01:10]} 12. Nd5 {[%emt 0:07:13]} Qg7 {[%emt 0:03:12]} 13. Qa4 {[%emt 0:02:17]} Nge7 {[%emt 0:11:36]} 14. Bf4 {[%emt 0:01:22]} d6 {[%emt 0:01:47]} 15. Rfc1 {[%emt 0:08:55]} g5 {[%emt 0:06:41]} 16. Bg3 {[%emt 0:02:34]} h5 {[%emt 0:02:00]} 17. h4 {[%emt 0:03:13]} gxh4 {[%emt 0:05:12]} 18. Bxh4 {[%emt 0:00:07]} Rdg8 {[%emt 0:00:22]} 19. Bf1 {[%emt 0:00:15]} Rh6 {[%emt 0:00:08]} 20. Rc3 {[%emt 0:03:03]} Rg6 {[%emt 0:00:14]} 21. Rg3 {[%emt 0:00:27]} Rxg3 {[%emt 0:01:21]} 22. fxg3 {[%emt 0:00:48]} f5 {[%emt 0:01:19]} 23. c5 {[%emt 0:13:07]} dxc5 {[%emt 0:04:07]} 24. Bf6 {[%emt 0:01:13]} Qf8 {[%emt 0:09:00]} 25. Bc4 {[%emt 0:12:04]} Rxg3 {[%emt 0:07:56]} 26. Bxe7 {[%emt 0:01:05]} Nxe7 {[%emt 0:00:30]} 27. Qxa7 {[%emt 0:00:21]} Nc6 {[%emt 0:03:01]} 28. Qa4 {[%emt 0:05:07]} Qg7 {[%emt 0:01:42]} 29. Bf1 {[%emt 0:00:23]} fxe4 {[%emt 0:01:52]} 30. Rd1 {[%emt 0:01:26]} Qe5 {[%emt 0:01:11]} 31. Ba6 {[%emt 0:01:22]} Nd4 {[%emt 0:00:59]} 32. Nf6 {[%emt 0:02:22]} b5 {[%emt 0:00:59]} 33. Bxb5 {[%emt 0:02:40]} Qxf6 {[%emt 0:00:07]} 34. Rf1 {[%emt 0:01:32]} Nf3+ {[%emt 0:00:30]} 35. Kf2 {[%emt 0:00:05]} Rg8 {[%emt 0:00:38]} 36. gxf3 {[%emt 0:01:05]} Qxb2+ {[%emt 0:00:22]} 0-1

[Event "Slovakian ECo-C Extraliga 2024-25"]
[Site "Slovakia"]
[Date "2025.02.15"]
[Round "5.8"]
[White "Takacs, Laszlo"]
[Black "Takacs, Laszlo"]
[Result "*"]
[Annotator "NA"]
[ECO "B30"]
[WhiteElo "2227"]
[BlackElo "2227"]
[PlyCount "22"]
[EventDate "2024.09.12"]
[EventType "team-tourn"]
[EventCountry "SVK"]
[SourceTitle "playchess.com"]
[Source "ChessBase"]
[SourceQuality "1"]
[TimeControl "5400+30"]

1. e4 {[%emt 0:00:03]} c5 {[%emt 0:00:15]} 2. Nf3 {[%emt 0:00:05]} Nc6 {[%emt 0:00:11]} 3. Bb5 {[%emt 0:01:41]} e5 {[%emt 0:01:25]} 4. O-O {[%emt 0:05:31]} Bd6 {[%emt 0:00:35]} 5. c3 {[%emt 0:06:27]} a6 {[%emt 0:01:00]} 6. Bxc6 {[%emt 0:04:15]} dxc6 {[%emt 0:00:44]} 7. d4 {[%emt 0:00:19]} cxd4 {[%emt 0:06:41]} 8. cxd4 {[%emt 0:01:26]} Qc7 {[%emt 0:01:58]} 9. dxe5 {[%emt 0:05:14]} Bxe5 {[%emt 0:00:30]} 10. Nxe5 {[%emt 0:00:24]} Qxe5 {[%emt 0:00:50]} 11. Nd2 {[%emt 0:09:57]} Be6 {[%emt 0:05:09]} *

[Event "Slovakian ECo-C Extraliga 2024-25"]
[Site "Slovakia"]
[Date "2025.02.15"]
[Round "5.8"]
[White "Takacs, Laszlo"]
[Black "Smetana, Peter"]
[Result "1/2-1/2"]
[Annotator "ChessBase"]
[ECO "B30"]
[WhiteElo "2227"]
[BlackElo "1947"]
[PlyCount "105"]
[EventDate "2024.09.12"]
[EventType "team-tourn"]
[EventCountry "SVK"]
[SourceTitle "playchess.com"]
[Source "ChessBase"]
[SourceQuality "1"]
[TimeControl "5400+30"]

1. e4 {[%emt 0:00:03]} c5 {[%emt 0:00:15]} 2. Nf3 {[%emt 0:00:05]} Nc6 {[%emt 0:00:11]} 3. Bb5 {[%emt 0:01:41]} e5 {[%emt 0:01:25]} 4. O-O {[%emt 0:05:31]} Bd6 {[%emt 0:00:35]} 5. c3 {[%emt 0:06:27]} a6 {[%emt 0:01:00]} 6. Bxc6 {[%emt 0:04:15]} dxc6 {[%emt 0:00:44]} 7. d4 {[%emt 0:00:19]} cxd4 {[%emt 0:06:41]} 8. cxd4 {[%emt 0:01:26]} Qc7 {[%emt 0:01:58]} 9. dxe5 {[%emt 0:05:14]} Bxe5 {[%emt 0:00:30]} 10. Nxe5 {[%emt 0:00:24]} Qxe5 {[%emt 0:00:50]} 11. Nd2 {[%emt 0:09:57]} Be6 {[%emt 0:05:09]} 12. f4 {[%emt 0:23:08]} Qc5+ {[%emt 0:37:53]} 13. Kh1 {[%emt 0:00:10]} f6 {[%emt 0:02:21]} 14. Nb3 {[%emt 0:07:35]} Qb6 {[%emt 0:14:31]} 15. Qh5+ {[%emt 0:18:16]} Bf7 {[%emt 0:01:57]} 16. Qg4 {[%emt 0:00:42]} Kf8 {[%emt 0:02:10]} 17. Rd1 {[%emt 0:05:13]} Bxb3 {[%emt 0:19:29]} 18. axb3 {[%emt 0:00:06]} Ne7 {[%emt 0:01:04]} 19. Qe6 {[%emt 0:03:27]} Rd8 {[%emt 0:00:40]} 20. Be3 {[%emt 0:01:03]} Qc7 {[%emt 0:00:08]} 21. Kg1 {[%emt 0:02:15]} h5 {[%emt 0:00:26]} 22. Kf2 {[%emt 0:01:17]} f5 {[%emt 0:00:34]} 23. Rxd8+ {[%emt 0:02:17]} Qxd8 {[%emt 0:00:05]} 24. exf5 {[%emt 0:00:42]} Qd5 {[%emt 0:01:15]} 25. Re1 {[%emt 0:00:52]} Qxf5 {[%emt 0:00:34]} 26. Qd6 {[%emt 0:00:33]} Rh6 {[%emt 0:00:20]} 27. Qb8+ {[%emt 0:00:30]} Kf7 {[%emt 0:00:27]} 28. Qxb7 {[%emt 0:00:08]} Re6 {[%emt 0:00:09]} 29. Qd7 {[%emt 0:00:51]} Qc2+ {[%emt 0:00:26]} 30. Qd2 {[%emt 0:00:24]} Qxb3 {[%emt 0:00:24]} 31. Bd4 {[%emt 0:00:28]} Rxe1 {[%emt 0:00:29]} 32. Qxe1 {[%emt 0:00:21]} Qc2+ {[%emt 0:00:11]} 33. Qe2 {[%emt 0:00:28]} Qxe2+ {[%emt 0:00:20]} 34. Kxe2 {[%emt 0:00:01]} g6 {[%emt 0:00:09]} 35. Kd3 {[%emt 0:01:12]} Ke6 {[%emt 0:00:43]} 36. Ke4 {[%emt 0:00:26]} Nf5 {[%emt 0:00:12]} 37. Bc3 {[%emt 0:00:38]} c5 {[%emt 0:01:41]} 38. Be5 {[%emt 0:00:33]} Nh4 {[%emt 0:00:25]} 39. g3 {[%emt 0:00:08]} Nf5 {[%emt 0:00:03]} 40. Bc7 {[%emt 0:00:52]} Ne7 {[%emt 0:01:07]} 41. h3 {[%emt 0:00:00]} Nf5 {[%emt 0:00:00]} 42. g4 {[%emt 0:00:00]} hxg4 {[%emt 0:00:00]} 43. hxg4 {[%emt 0:00:00]} Nh6 {[%emt 0:00:00]} 44. Kf3 {[%emt 0:00:00]} Kd5 {[%emt 0:00:00]} 45. Be5 {[%emt 0:00:00]} Nf7 {[%emt 0:00:00]} 46. Bc7 {[%emt 0:00:00]} Kc6 {[%emt 0:00:00]} 47. Ba5 {[%emt 0:00:00]} Nd6 {[%emt 0:00:00]} 48. Bc3 {[%emt 0:00:00]} Kd5 {[%emt 0:00:00]} 49. Ke3 {[%emt 0:00:00]} Ne4 {[%emt 0:00:00]} 50. Bg7 {[%emt 0:00:00]} Nd6 {[%emt 0:00:00]} 51. Bc3 {[%emt 0:00:00]} Ne4 {[%emt 0:00:00]} 52. Bg7 {[%emt 0:00:00]} Nd6 {[%emt 0:00:00]} 53. Bc3 {[%emt 0:00:00]} 1/2-1/2

[Event "Slovakian ECo-C Extraliga 2024-25"]
[Site "Slovakia"]
[Date "2025.02.15"]
[Round "5.8"]
[White "Benci, Jozef"]
[Black "Kasperek, Ryszard"]
[Result "0-1"]
[Annotator "NA"]
[ECO "A04"]
[WhiteElo "1954"]
[BlackElo "2069"]
[PlyCount "82"]
[EventDate "2024.09.12"]
[EventType "team-tourn"]
[EventCountry "SVK"]
[SourceTitle "playchess.com"]
[Source "ChessBase"]
[SourceQuality "1"]
[TimeControl "5400+30"]

1. Nf3 {[%emt 0:00:24]} c5 {[%emt 0:00:18]} 2. c4 {[%emt 0:01:11]} Nc6 {[%emt 0:01:17]} 3. g3 {[%emt 0:00:54]} g6 {[%emt 0:00:32]} 4. Bg2 {[%emt 0:02:25]} Bg7 {[%emt 0:00:11]} 5. O-O {[%emt 0:00:15]} e5 {[%emt 0:00:07]} 6. d3 {[%emt 0:00:40]} Nge7 {[%emt 0:00:27]} 7. Nc3 {[%emt 0:01:14]} d6 {[%emt 0:02:10]} 8. Rb1 {[%emt 0:11:08]} O-O {[%emt 0:00:30]} 9. a3 {[%emt 0:00:24]} a5 {[%emt 0:01:36]} 10. Bg5 {[%emt 0:06:03]} f6 {[%emt 0:10:35]} 11. Bd2 {[%emt 0:00:39]} Bg4 {[%emt 0:04:51]} 12. h3 {[%emt 0:19:21]} Be6 {[%emt 0:00:10]} 13. Ne1 {[%emt 0:06:48]} Qd7 {[%emt 0:24:50]} 14. Kh2 {[%emt 0:00:33]} Rab8 {[%emt 0:05:11]} 15. Nc2 {[%emt 0:06:00]} d5 {[%emt 0:00:19]} 16. cxd5 {[%emt 0:00:12]} Nxd5 {[%emt 0:00:07]} 17. Ne3 {[%emt 0:01:12]} Nxe3 {[%emt 0:07:23]} 18. Bxe3 {[%emt 0:00:08]} Nd4 {[%emt 0:00:42]} 19. Ne4 {[%emt 0:08:10]} Rfc8 {[%emt 0:04:08]} 20. Bxd4 {[%emt 0:00:58]} cxd4 {[%emt 0:00:22]} 21. b4 {[%emt 0:02:50]} axb4 {[%emt 0:00:18]} 22. axb4 {[%emt 0:07:44]} b6 {[%emt 0:01:34]} 23. Ra1 {[%emt 0:00:16]} Bd5 {[%emt 0:09:28]} 24. Qa4 {[%emt 0:03:01]} Qxa4 {[%emt 0:09:57]} 25. Rxa4 {[%emt 0:00:07]} Bc6 {[%emt 0:00:25]} 26. Ra7 {[%emt 0:01:07]} f5 {[%emt 0:00:24]} 27. Nd6 {[%emt 0:01:07]} Bxg2 {[%emt 0:00:05]} 28. Kxg2 {[%emt 0:00:01]} Rc2 {[%emt 0:00:22]} 29. Kf3 {[%emt 0:02:02]} Bf8 {[%emt 0:00:26]} 30. Nf7 {[%emt 0:04:26]} Re8 {[%emt 0:01:32]} 31. Rd7 {[%emt 0:04:03]} e4+ {[%emt 0:01:04]} 32. dxe4 {[%emt 0:00:22]} fxe4+ {[%emt 0:00:04]} 33. Kg2 {[%emt 0:01:32]} Rxe2 {[%emt 0:00:31]} 34. Nd6 {[%emt 0:03:10]} Re6 {[%emt 0:02:09]} 35. Nb5 {[%emt 0:00:32]} Rf6 {[%emt 0:03:59]} 36. Nxd4 {[%emt 0:03:56]} Rd2 {[%emt 0:00:05]} 37. Kg1 {[%emt 0:01:16]} Bxb4 {[%emt 0:01:08]} 38. g4 {[%emt 0:02:22]} Bc5 {[%emt 0:06:03]} 39. Rd8+ {[%emt 0:00:07]} Kf7 {[%emt 0:00:25]} 40. Nc6 {[%emt 0:01:16]} Rdxf2 {[%emt 0:01:57]} 41. Ne5+ {[%emt 0:00:00]} Ke7 {[%emt 0:00:00]} 0-1

[Event "Slovakian ECo-C Extraliga 2024-25"]
[Site "Slovakia"]
[Date "2025.02.15"]
[Round "5.8"]
[White "Jarabek, Milan"]
[Black "Urhegyi, Marton"]
[Result "0-1"]
[Annotator "NA"]
[ECO "B38"]
[WhiteElo "1814"]
[BlackElo "2249"]
[PlyCount "42"]
[EventDate "2024.09.12"]
[EventType "team-tourn"]
[EventCountry "SVK"]
[SourceTitle "playchess.com"]
[Source "ChessBase"]
[SourceQuality "1"]
[TimeControl "5400+30"]

1. e4 {[%emt 0:00:04]} c5 {[%emt 0:00:09]} 2. Nf3 {[%emt 0:00:06]} Nc6 {[%emt 0:00:14]} 3. d4 {[%emt 0:00:30]} cxd4 {[%emt 0:00:30]} 4. Nxd4 {[%emt 0:00:30]} g6 {[%emt 0:00:30]} 5. c4 {[%emt 0:00:30]} Bg7 {[%emt 0:00:30]} 6. Be3 {[%emt 0:00:30]} Nf6 {[%emt 0:00:30]} 7. Nc3 {[%emt 0:00:30]} d6 {[%emt 0:00:30]} 8. Be2 {[%emt 0:00:00]} O-O {[%emt 0:00:00]} 9. O-O {[%emt 0:00:00]} Bd7 {[%emt 0:00:00]} 10. Nc2 {[%emt 0:02:14]} a5 {[%emt 0:01:47]} 11. f4 {[%emt 0:04:15]} a4 {[%emt 0:05:59]} 12. c5 {[%emt 0:06:09]} dxc5 {[%emt 0:02:26]} 13. e5 {[%emt 0:00:23]} Ne8 {[%emt 0:01:51]} 14. Bxc5 {[%emt 0:03:24]} Nc7 {[%emt 0:03:29]} 15. Ne3 {[%emt 0:05:04]} Ne6 {[%emt 0:04:05]} 16. Ne4 {[%emt 0:05:13]} Nxc5 {[%emt 0:11:10]} 17. Nxc5 {[%emt 0:06:40]} Qb6 {[%emt 0:00:50]} 18. Qxd7 {[%emt 0:18:53]} Rfd8 {[%emt 0:18:07]} 19. Qxb7 {[%emt 0:00:31]} Qxc5 {[%emt 0:00:06]} 20. Kf2 {[%emt 0:00:18]} Rab8 {[%emt 0:04:59]} 21. Qa6 {[%emt 0:00:15]} Rb4 {[%emt 0:03:10]} 0-1